fUSD/lending_fUSD_20260621
["ID","MTS","AMOUNT","RATE_DAILY","PERIOD"]
[425898603,1782030677000,-500.0,0.00028767,2]
[425898594,1782030677000,-500.0,0.00028767,2]
[425898576,1782030677000,-500.0,0.00028767,2]
[425898590,1782030677000,-500.0,0.00028767,2]
[425898617,1782030677000,-1150.43,0.00028767,2]
[425898570,1782030677000,-802.02,0.00028767,2]
[425898572,1782030677000,-986.01,0.00028767,2]
[425898580,1782030677000,-500.0,0.00028767,2]
[425898581,1782030677000,-500.0,0.00028767,2]
[425898571,1782030677000,-774.62,0.00028767,2]
[425898582,1782030677000,-831.94,0.00028767,2]
[425898578,1782030677000,-500.0,0.00028767,2]
[425898579,1782030677000,-500.0,0.00028767,2]
[425898573,1782030677000,-500.0,0.00028767,2]
[425898577,1782030677000,-500.0,0.00028767,2]
[425898574,1782030677000,-530.99,0.00028767,2]
[425898575,1782030677000,-175.91126475,0.00028767,2]
[425898596,1782030677000,-1259.13,0.00028767,2]
[425898586,1782030677000,-500.0,0.00028767,2]
[425898591,1782030677000,-579.95,0.00028767,2]
[425898587,1782030677000,-500.0,0.00028767,2]
[425898592,1782030677000,-1129.47,0.00028767,2]
[425898588,1782030677000,-859.64,0.00028767,2]
[425898585,1782030677000,-992.95,0.00028767,2]
[425898583,1782030677000,-500.0,0.00028767,2]
[425898589,1782030677000,-500.0,0.00028767,2]
[425898615,1782030677000,-651.77,0.00028767,2]
[425898619,1782030677000,-500.0,0.00028767,2]
[425898620,1782030677000,-500.0,0.00028767,2]
[425898647,1782030677000,-343.16140177,0.00028767,2]
[425898639,1782030677000,-761.28,0.00028767,2]
[425898648,1782030677000,-348.70208262,0.00028767,2]
[425898650,1782030677000,-500.0,0.00028767,2]
[425898649,1782030677000,-500.0,0.00028767,2]
[425898651,1782030677000,-1551.57,0.00028767,2]
[425898652,1782030677000,-500.0,0.00028767,2]
[425898654,1782030677000,-661.2,0.00028767,2]
[425898655,1782030677000,-500.0,0.00028767,2]
[425898658,1782030677000,-500.0,0.00028767,2]
[425898641,1782030677000,-196.2131158,0.00028767,2]
[425898656,1782030677000,-500.0,0.00028767,2]
[425898660,1782030677000,-500.0,0.00028767,2]
[425898659,1782030677000,-959.52,0.00028767,2]
[425898661,1782030677000,-500.0,0.00028767,2]
[425898662,1782030677000,-500.0,0.00028767,2]
[425898665,1782030677000,-500.0,0.00028767,2]
[425898666,1782030677000,-869.82,0.00028767,2]
[425898663,1782030677000,-500.0,0.00028767,2]
[425898664,1782030677000,-2757.04,0.00028767,2]
[425898616,1782030677000,-500.0,0.00028767,2]
[425898667,1782030677000,-500.0,0.00028767,2]
[425898657,1782030677000,-500.0,0.00028767,2]
[425898646,1782030677000,-904.2,0.00028767,2]
[425898653,1782030677000,-500.0,0.00028767,2]
[425898645,1782030677000,-500.0,0.00028767,2]
[425898622,1782030677000,-632.68,0.00028767,2]
[425898642,1782030677000,-500.0,0.00028767,2]
[425898621,1782030677000,-500.0,0.00028767,2]
[425898625,1782030677000,-553.13,0.00028767,2]
[425898623,1782030677000,-594.98,0.00028767,2]
[425898624,1782030677000,-500.0,0.00028767,2]
[425898637,1782030677000,-1047.94,0.00028767,2]
[425898626,1782030677000,-534.41,0.00028767,2]
[425898628,1782030677000,-500.0,0.00028767,2]
[425898629,1782030677000,-500.0,0.00028767,2]
[425898630,1782030677000,-500.0,0.00028767,2]
[425898627,1782030677000,-504.75,0.00028767,2]
[425898634,1782030677000,-920.46,0.00028767,2]
[425898632,1782030677000,-500.0,0.00028767,2]
[425898631,1782030677000,-500.0,0.00028767,2]
[425898636,1782030677000,-522.743824,0.00028767,2]
[425898633,1782030677000,-500.0,0.00028767,2]
[425898635,1782030677000,-500.0,0.00028767,2]
[425898640,1782030677000,-500.0,0.00028767,2]
[425898638,1782030677000,-500.0,0.00028767,2]
[425898643,1782030677000,-500.0,0.00028767,2]
[425898644,1782030677000,-500.0,0.00028767,2]
[425898704,1782030678000,-4789.96,0.00028767,2]
[425898702,1782030678000,-500.0,0.00028767,2]
[425898711,1782030678000,-1174.46,0.00028767,2]
[425898707,1782030678000,-500.0,0.00028767,2]
[425898706,1782030678000,-500.0,0.00028767,2]
[425898698,1782030678000,-500.0,0.00028767,2]
[425898699,1782030678000,-500.0,0.00028767,2]
[425898701,1782030678000,-500.0,0.00028767,2]
[425898700,1782030678000,-352.92972669,0.00028767,7]
[425898713,1782030678000,-500.0,0.00028767,2]
[425898696,1782030678000,-500.0,0.00028767,2]
[425898708,1782030678000,-500.0,0.00028767,2]
[425898717,1782030678000,-500.0,0.00028767,2]
[425898705,1782030678000,-617.68863685,0.00028767,2]
[425898703,1782030678000,-500.0,0.00028767,2]
[425898710,1782030678000,-1974.92,0.00028767,2]
[425898709,1782030678000,-845.19,0.00028767,2]
[425898712,1782030678000,-500.0,0.00028767,2]
[425898723,1782030678000,-500.0,0.00028767,2]
[425898724,1782030678000,-500.0,0.00028767,2]
[425898721,1782030678000,-500.0,0.00028767,2]
[425898719,1782030678000,-500.0,0.00028767,2]
[425898720,1782030678000,-841.88,0.00028767,2]
[425898694,1782030678000,-2256.95,0.00028767,2]
[425898722,1782030678000,-500.0,0.00028767,2]
[425898697,1782030678000,-1104.75,0.00028767,2]
[425898670,1782030678000,-546.96,0.00028767,2]
[425898695,1782030678000,-1669.63,0.00028767,2]
[425898714,1782030678000,-500.0,0.00028767,2]
[425898668,1782030678000,-500.0,0.00028767,2]
[425898669,1782030678000,-540.01,0.00028767,2]
[425898672,1782030678000,-500.0,0.00028767,2]
[425898677,1782030678000,-662.25,0.00028767,2]
[425898673,1782030678000,-500.0,0.00028767,2]
[425898671,1782030678000,-500.0,0.00028767,2]
[425898676,1782030678000,-500.0,0.00028767,2]
[425898674,1782030678000,-500.0,0.00028767,2]
[425898679,1782030678000,-500.0,0.00028767,2]
[425898675,1782030678000,-504.55,0.00028767,2]
[425898680,1782030678000,-500.0,0.00028767,2]
[425898678,1782030678000,-500.0,0.00028767,2]
[425898682,1782030678000,-500.0,0.00028767,2]
[425898684,1782030678000,-500.0,0.00028767,2]
[425898686,1782030678000,-500.0,0.00028767,2]
[425898681,1782030678000,-1233.28,0.00028767,2]
[425898683,1782030678000,-500.0,0.00028767,2]
[425898685,1782030678000,-646.77,0.00028767,2]
[425898688,1782030678000,-500.0,0.00028767,2]
[425898689,1782030678000,-1631.14,0.00028767,2]
[425898690,1782030678000,-935.34,0.00028767,2]
[425898687,1782030678000,-500.0,0.00028767,2]
[425898691,1782030678000,-183.81841021,0.00028767,2]
[425898692,1782030678000,-500.0,0.00028767,2]
[425898693,1782030678000,-500.0,0.00028767,2]
[425898725,1782030678000,-500.0,0.00028767,2]
[425898737,1782030678000,-1070.05,0.00028767,2]
[425898715,1782030678000,-500.0,0.00028767,2]
[425898755,1782030678000,-1170.07,0.00028767,2]
[425898757,1782030678000,-500.0,0.00028767,2]
[425898756,1782030678000,-500.0,0.00028767,2]
[425898758,1782030678000,-500.0,0.00028767,2]
[425898766,1782030678000,-542.47,0.00028767,2]
[425898764,1782030678000,-500.0,0.00028767,2]
[425898761,1782030678000,-1108.41,0.00028767,2]
[425898759,1782030678000,-500.0,0.00028767,2]
[425898760,1782030678000,-500.0,0.00028767,2]
[425898765,1782030678000,-500.0,0.00028767,2]
[425898768,1782030678000,-1703.22,0.00028767,2]
[425898770,1782030678000,-810.37,0.00028767,2]
[425898767,1782030678000,-500.0,0.00028767,2]
[425898769,1782030678000,-1142.21,0.00028767,2]
[425898762,1782030678000,-1124.0,0.00028767,2]
[425898763,1782030678000,-606.62,0.00028767,2]
[425898771,1782030678000,-500.0,0.00028767,2]
[425898773,1782030678000,-837.29,0.00028767,2]
[425898774,1782030678000,-500.0,0.00028767,2]
[425898772,1782030678000,-500.0,0.00028767,2]
[425898779,1782030678000,-744.53,0.00028767,2]
[425898776,1782030678000,-582.46,0.00028767,2]
[425898777,1782030678000,-500.0,0.00028767,2]
[425898778,1782030678000,-500.0,0.00028767,2]
[425898718,1782030678000,-500.0,0.00028767,2]
[425898751,1782030678000,-4723.42,0.00028767,2]
[425898750,1782030678000,-567.62,0.00028767,2]
[425898775,1782030678000,-500.0,0.00028767,2]
[425898753,1782030678000,-500.0,0.00028767,2]
[425898754,1782030678000,-500.0,0.00028767,2]
[425898716,1782030678000,-500.0,0.00028767,2]
[425898731,1782030678000,-500.0,0.00028767,2]
[425898727,1782030678000,-500.0,0.00028767,2]
[425898733,1782030678000,-500.0,0.00028767,2]
[425898726,1782030678000,-622.18,0.00028767,2]
[425898735,1782030678000,-500.0,0.00028767,2]
[425898728,1782030678000,-500.0,0.00028767,2]
[425898734,1782030678000,-1376.25,0.00028767,2]
[425898730,1782030678000,-4274.09,0.00028767,2]
[425898732,1782030678000,-1132.92,0.00028767,2]
[425898736,1782030678000,-500.0,0.00028767,2]
[425898729,1782030678000,-500.0,0.00028767,2]
[425898744,1782030678000,-1620.05,0.00028767,2]
[425898749,1782030678000,-1173.97,0.00028767,2]
[425898738,1782030678000,-500.0,0.00028767,2]
[425898748,1782030678000,-500.0,0.00028767,2]
[425898745,1782030678000,-500.0,0.00028767,2]
[425898739,1782030678000,-500.0,0.00028767,2]
[425898746,1782030678000,-775.21,0.00028767,2]
[425898752,1782030678000,-728.91,0.00028767,2]
[425898743,1782030678000,-500.0,0.00028767,2]
[425898740,1782030678000,-500.0,0.00028767,2]
[425898742,1782030678000,-2291.39,0.00028767,2]
[425898741,1782030678000,-500.0,0.00028767,2]
[425898747,1782030678000,-500.0,0.00028767,2]
[425898820,1782030679000,-1028.12,0.00028767,2]
[425898803,1782030679000,-1748.67,0.00028767,2]
[425898804,1782030679000,-563.39,0.00028767,2]
[425898805,1782030679000,-1000.0,0.00028767,2]
[425898816,1782030679000,-500.0,0.00028767,2]
[425898814,1782030679000,-559.91,0.00028767,2]
[425898812,1782030679000,-500.0,0.00028767,2]
[425898806,1782030679000,-561.78,0.00028767,2]
[425898810,1782030679000,-616.94,0.00028767,2]
[425898808,1782030679000,-500.0,0.00028767,2]
[425898819,1782030679000,-3862.56,0.00028767,2]
[425898807,1782030679000,-637.56,0.00028767,2]
[425898809,1782030679000,-901.37,0.00028767,2]
[425898813,1782030679000,-4314.51,0.00028767,2]
[425898801,1782030679000,-500.0,0.00028767,2]
[425898815,1782030679000,-500.0,0.00028767,2]
[425898817,1782030679000,-500.0,0.00028767,2]
[425898818,1782030679000,-500.0,0.00028767,2]
[425898811,1782030679000,-500.0,0.00028767,2]
[425898794,1782030679000,-525.59,0.00028767,2]
[425898793,1782030679000,-500.0,0.00028767,2]
[425898799,1782030679000,-500.0,0.00028767,2]
[425898821,1782030679000,-1207.68,0.00028767,2]
[425898782,1782030679000,-500.0,0.00028767,2]
[425898781,1782030679000,-1091.17,0.00028767,2]
[425898780,1782030679000,-500.0,0.00028767,2]
[425898789,1782030679000,-627.76,0.00028767,2]
[425898786,1782030679000,-500.0,0.00028767,2]
[425898790,1782030679000,-254.35337087,0.00028767,2]
[425898792,1782030679000,-500.0,0.00028767,2]
[425898783,1782030679000,-500.0,0.00028767,2]
[425898787,1782030679000,-500.0,0.00028767,2]
[425898784,1782030679000,-500.0,0.00028767,2]
[425898788,1782030679000,-614.06835455,0.00028767,2]
[425898785,1782030679000,-500.0,0.00028767,2]
[425898791,1782030679000,-575.96,0.00028767,2]
[425898796,1782030679000,-1347.36,0.00028767,2]
[425898795,1782030679000,-500.0,0.00028767,2]
[425898797,1782030679000,-3065.16,0.00028767,2]
[425898800,1782030679000,-500.0,0.00028767,2]
[425898802,1782030679000,-500.0,0.00028767,2]
[425898798,1782030679000,-500.0,0.00028767,2]
[425898822,1782030679000,-541.65,0.00028767,2]
[425898835,1782030679000,-1512.61,0.00028767,2]
[425898823,1782030679000,-270.46056362,0.00028767,2]
[425898850,1782030679000,-500.0,0.00028767,2]
[425898853,1782030679000,-1143.14,0.00028767,2]
[425898852,1782030679000,-520.25749114,0.00028767,2]
[425898851,1782030679000,-500.0,0.00028767,2]
[425898849,1782030679000,-557.52,0.00028767,2]
[425898854,1782030679000,-1589.62,0.00028767,2]
[425898856,1782030679000,-500.0,0.00028767,2]
[425898857,1782030679000,-500.0,0.00028767,2]
[425898855,1782030679000,-620.2,0.00028767,2]
[425898858,1782030679000,-500.0,0.00028767,2]
[425898859,1782030679000,-500.0,0.00028767,2]
[425898862,1782030679000,-500.0,0.00028767,2]
[425898860,1782030679000,-838.96,0.00028767,2]
[425898861,1782030679000,-500.0,0.00028767,2]
[425898863,1782030679000,-5457.71,0.00028767,2]
[425898865,1782030679000,-872.58,0.00028767,2]
[425898864,1782030679000,-500.0,0.00028767,2]
[425898824,1782030679000,-500.0,0.00028767,2]
[425898866,1782030679000,-813.38,0.00028767,2]
[425898847,1782030679000,-500.0,0.00028767,2]
[425898848,1782030679000,-500.0,0.00028767,2]
[425898867,1782030679000,-2877.52,0.00028767,2]
[425898844,1782030679000,-391.01191,0.00028767,2]
[425898846,1782030679000,-500.0,0.00028767,2]
[425898830,1782030679000,-3679.81,0.00028767,2]
[425898827,1782030679000,-672.54,0.00028767,2]
[425898826,1782030679000,-1385.81,0.00028767,2]
[425898825,1782030679000,-500.0,0.00028767,2]
[425898829,1782030679000,-500.0,0.00028767,2]
[425898832,1782030679000,-500.0,0.00028767,2]
[425898831,1782030679000,-500.0,0.00028767,2]
[425898833,1782030679000,-500.0,0.00028767,2]
[425898828,1782030679000,-500.0,0.00028767,2]
[425898836,1782030679000,-500.0,0.00028767,2]
[425898837,1782030679000,-639.64,0.00028767,2]
[425898842,1782030679000,-500.0,0.00028767,2]
[425898843,1782030679000,-1575.21,0.00028767,2]
[425898840,1782030679000,-500.0,0.00028767,2]
[425898845,1782030679000,-1872.05,0.00028767,2]
[425898839,1782030679000,-500.0,0.00028767,2]
[425898838,1782030679000,-5605.99,0.00028767,2]
[425898834,1782030679000,-500.0,0.00028767,2]
[425898841,1782030679000,-927.82,0.00028767,2]
[425898897,1782030680000,-500.0,0.00028767,2]
[425898892,1782030680000,-500.0,0.00028767,2]
[425898895,1782030680000,-365.7178328,0.00028767,2]
[425898890,1782030680000,-1085.27,0.00028767,2]
[425898891,1782030680000,-500.0,0.00028767,2]
[425898893,1782030680000,-500.0,0.00028767,2]
[425898894,1782030680000,-500.0,0.00028767,2]
[425898903,1782030680000,-501.49,0.00028767,2]
[425898898,1782030680000,-500.0,0.00028767,2]
[425898896,1782030680000,-655.64,0.00028767,2]
[425898910,1782030680000,-500.0,0.00028767,2]
[425898901,1782030680000,-500.0,0.00028767,2]
[425898900,1782030680000,-500.0,0.00028767,2]
[425898902,1782030680000,-500.0,0.00028767,2]
[425898907,1782030680000,-500.0,0.00028767,2]
[425898889,1782030680000,-500.0,0.00028767,2]
[425898899,1782030680000,-558.3,0.00028767,2]
[425898888,1782030680000,-500.0,0.00028767,2]
[425898877,1782030680000,-500.0,0.00028767,2]
[425898884,1782030680000,-573.43,0.00028767,2]
[425898868,1782030680000,-500.0,0.00028767,2]
[425898869,1782030680000,-681.71,0.00028767,2]
[425898870,1782030680000,-2372.91,0.00028767,2]
[425898871,1782030680000,-500.0,0.00028767,2]
[425898876,1782030680000,-500.0,0.00028767,2]
[425898874,1782030680000,-640.67,0.00028767,2]
[425898875,1782030680000,-1139.19,0.00028767,2]
[425898873,1782030680000,-500.0,0.00028767,2]
[425898878,1782030680000,-835.12,0.00028767,2]
[425898872,1782030680000,-500.0,0.00028767,2]
[425898880,1782030680000,-668.87,0.00028767,2]
[425898885,1782030680000,-500.0,0.00028767,2]
[425898881,1782030680000,-500.0,0.00028767,2]
[425898879,1782030680000,-500.0,0.00028767,2]
[425898883,1782030680000,-500.0,0.00028767,2]
[425898882,1782030680000,-500.0,0.00028767,2]
[425898886,1782030680000,-500.0,0.00028767,2]
[425898887,1782030680000,-613.52,0.00028767,2]
[425898904,1782030680000,-500.0,0.00028767,2]
[425898920,1782030680000,-584.85,0.00028767,2]
[425898905,1782030680000,-531.49599608,0.00028767,2]
[425898930,1782030680000,-500.0,0.00028767,2]
[425898933,1782030680000,-500.0,0.00028767,2]
[425898935,1782030680000,-500.0,0.00028767,2]
[425898932,1782030680000,-3851.02,0.00028767,2]
[425898934,1782030680000,-500.0,0.00028767,2]
[425898939,1782030680000,-726.28,0.00028767,2]
[425898937,1782030680000,-573.43,0.00028767,2]
[425898929,1782030680000,-500.0,0.00028767,2]
[425898936,1782030680000,-1375.03,0.00028767,2]
[425898941,1782030680000,-500.0,0.00028767,2]
[425898943,1782030680000,-728.77,0.00028767,2]
[425898946,1782030680000,-500.0,0.00028767,2]
[425898942,1782030680000,-500.0,0.00028767,2]
[425898944,1782030680000,-500.0,0.00028767,2]
[425898945,1782030680000,-597.07,0.00028767,2]
[425898908,1782030680000,-500.0,0.00028767,2]
[425898938,1782030680000,-500.0,0.00028767,2]
[425898931,1782030680000,-500.0,0.00028767,2]
[425898940,1782030680000,-500.0,0.00028767,2]
[425898926,1782030680000,-500.0,0.00028767,2]
[425898925,1782030680000,-500.0,0.00028767,2]
[425898909,1782030680000,-785.35,0.00028767,2]
[425898911,1782030680000,-500.0,0.00028767,2]
[425898906,1782030680000,-500.0,0.00028767,2]
[425898912,1782030680000,-542.49,0.00028767,2]
[425898918,1782030680000,-255.54849766,0.00028767,2]
[425898916,1782030680000,-1206.28,0.00028767,2]
[425898913,1782030680000,-500.0,0.00028767,2]
[425898919,1782030680000,-500.0,0.00028767,2]
[425898914,1782030680000,-500.0,0.00028767,2]
[425898917,1782030680000,-551.49,0.00028767,2]
[425898927,1782030680000,-500.0,0.00028767,2]
[425898923,1782030680000,-516.6,0.00028767,2]
[425898928,1782030680000,-7008.53,0.00028767,2]
[425898924,1782030680000,-616.27,0.00028767,2]
[425898922,1782030680000,-500.0,0.00028767,2]
[425898915,1782030680000,-500.0,0.00028767,2]
[425898921,1782030680000,-500.0,0.00028767,2]
[425898972,1782030681000,-983.27,0.00028767,2]
[425898961,1782030681000,-500.0,0.00028767,2]
[425898956,1782030681000,-2019.42,0.00028767,2]
[425898960,1782030681000,-901.13,0.00028767,2]
[425898965,1782030681000,-500.0,0.00028767,2]
[425898959,1782030681000,-504.46,0.00028767,2]
[425898957,1782030681000,-2826.58,0.00028767,2]
[425898962,1782030681000,-795.36,0.00028767,2]
[425898958,1782030681000,-500.0,0.00028767,2]
[425898952,1782030681000,-500.0,0.00028767,2]
[425898949,1782030681000,-555.63,0.00028767,2]
[425898964,1782030681000,-1592.33,0.00028767,2]
[425898954,1782030681000,-500.0,0.00028767,2]
[425898963,1782030681000,-16367.63,0.00028767,2]
[425898953,1782030681000,-500.0,0.00028767,2]
[425898951,1782030681000,-500.0,0.00028767,2]
[425898948,1782030681000,-944.61,0.00028767,2]
[425898950,1782030681000,-1266.83,0.00028767,2]
[425898947,1782030681000,-500.0,0.00028767,2]
[425898967,1782030681000,-647.76,0.00028767,2]
[425898955,1782030681000,-298.53,0.00028767,2]
[425898971,1782030681000,-603.02,0.00028767,2]
[425898977,1782030681000,-161.0,0.00028853,30]
[425898969,1782030681000,-2278.65,0.00028767,2]
[425898987,1782030681000,-500.0,0.00027396,2]
[425898974,1782030681000,-155.0,0.00028847,30]
[425898991,1782030681000,-2232.685,0.00029,7]
[425898990,1782030681000,-1124.68558388,0.00029,7]
[425898988,1782030681000,-3609.25623646,0.000289,2]
[425898983,1782030681000,-158.0,0.00028858,30]
[425898981,1782030681000,-167.0,0.00028858,30]
[425898982,1782030681000,-153.0,0.00028858,30]
[425898985,1782030681000,-508.0,0.00028889,10]
[425898979,1782030681000,-162.0,0.00028858,30]
[425898989,1782030681000,-9155.43524948,0.000289,2]
[425898980,1782030681000,-158.0,0.00028858,30]
[425898986,1782030681000,-30611.58268258,0.000289,2]
[425898966,1782030681000,-500.0,0.00028767,2]
[425898978,1782030681000,-1034.0,0.00028853,30]
[425898975,1782030681000,-165.37889936,0.00028847,30]
[425898968,1782030681000,-500.0,0.00028767,2]
[425898970,1782030681000,-1305.95,0.00028767,2]
[425898973,1782030681000,-155.0,0.00028847,30]
[425898976,1782030681000,-158.0,0.00028853,30]
[425898984,1782030681000,-59491.67514473,0.0002888,60]
[425898992,1782030682000,-0.28621703,0.00019178,2]
[425898997,1782030682000,-500.0,0.00027396,2]
[425898999,1782030682000,-500.0,0.00027396,2]
[425899001,1782030682000,-987.11,0.00027397,2]
[425898994,1782030682000,-1874.70954764,0.00019178,2]
[425898993,1782030682000,-1125.00423533,0.00019178,2]
[425898995,1782030682000,-500.0,0.00027396,2]
[425899000,1782030682000,-500.0,0.00027396,2]
[425898998,1782030682000,-500.0,0.00027396,2]
[425899002,1782030682000,-2664.57,0.00027397,10]
[425899003,1782030682000,-987.11,0.00027671,2]
[425899004,1782030682000,-14299.50435307,0.00029,7]
[425898996,1782030682000,-500.0,0.00027396,2]
[425899009,1782030683000,-500.0,0.00027396,2]
[425899005,1782030683000,-500.0,0.00027396,2]
[425899008,1782030683000,-500.0,0.00027396,2]
[425899007,1782030683000,-500.0,0.00027396,2]
[425899006,1782030683000,-500.0,0.00027396,2]
[425899010,1782030683000,-500.0,0.00027396,2]
[425899017,1782030683000,-500.0,0.00027396,2]
[425899013,1782030683000,-500.0,0.00027396,2]
[425899016,1782030683000,-44.59136069,0.00027396,2]
[425899012,1782030683000,-500.0,0.00027396,2]
[425899011,1782030683000,-500.0,0.00027396,2]
[425899015,1782030683000,-455.40863931,0.00027396,2]
[425899014,1782030683000,-500.0,0.00027396,2]
[425899019,1782030684000,-500.0,0.00027396,2]
[425899020,1782030684000,-500.0,0.00027396,2]
[425899021,1782030684000,-500.0,0.00027396,2]
[425899023,1782030684000,-500.0,0.00027396,2]
[425899024,1782030684000,-500.0,0.00027396,2]
[425899036,1782030684000,-5709.41,0.00027397,2]
[425899026,1782030684000,-500.0,0.00027396,2]
[425899025,1782030684000,-500.0,0.00027396,2]
[425899018,1782030684000,-500.0,0.00027396,2]
[425899027,1782030684000,-500.0,0.00027396,2]
[425899028,1782030684000,-500.0,0.00027396,2]
[425899037,1782030684000,-98627.07588629,0.00027397,2]
[425899035,1782030684000,-500.0,0.00027396,2]
[425899032,1782030684000,-500.0,0.00027396,2]
[425899022,1782030684000,-500.0,0.00027396,2]
[425899029,1782030684000,-500.0,0.00027396,2]
[425899031,1782030684000,-500.0,0.00027396,2]
[425899033,1782030684000,-500.0,0.00027396,2]
[425899030,1782030684000,-500.0,0.00027396,2]
[425899034,1782030684000,-500.0,0.00027396,2]
[425899040,1782030685000,-118237.38940095,0.00027397,2]
[425899039,1782030685000,-500.0,0.00027396,2]
[425899038,1782030685000,-301.73,0.0002685,2]
[425899042,1782030738000,-1218.39935315,0.00010792,2]
[425899043,1782030754000,-500.0,0.00010375,2]
[425899044,1782030806000,-163.21078892,0.00010375,2]
[425899045,1782030860000,-500.0,0.00010374,2]
[425899046,1782030913000,-781.60064685,0.00010792,2]
[425899047,1782030967000,-2500.0,0.00010792,2]
[425899048,1782031020000,-500.0,0.00010791,2]
[425899049,1782031073000,-500.0,0.0001079,2]
[425899050,1782031075000,200.0,0.00010794,7]
[425899051,1782031127000,-500.0,0.00010789,2]
[425899052,1782031181000,-150.0,0.00010788,2]
[425899053,1782031359000,-500.0,0.00010688,2]
[425899058,1782031413000,-150.0,0.00010787,2]
[425899060,1782031466000,-500.0,0.00010787,2]
[425899061,1782031520000,-150.0,0.00010785,2]
[425899062,1782031536000,780.718839,0.000209,30]
[425899063,1782031544000,-1000.0,0.0003,120]
[425899064,1782031544000,-150.0,0.00030136,120]
[425899067,1782031573000,-500.0,0.00010786,2]
[425899069,1782031626000,-500.0,0.00010785,2]
[425899071,1782031680000,-500.0,0.00010785,2]
[425899072,1782031733000,-500.0,0.00010785,2]
[425899075,1782031787000,-500.0,0.00010785,2]
[425899076,1782031790000,-500.0,0.00010785,2]
[425899078,1782031790000,-177.57519456,0.00010785,2]
[425899077,1782031790000,-238.52916376,0.00010785,2]
[425899080,1782031790000,-500.0,0.00010785,2]
[425899079,1782031790000,-500.0,0.00010785,2]
[425899081,1782031790000,-500.0,0.00010785,2]
[425899082,1782031790000,-500.0,0.00010785,2]
[425899084,1782031790000,-326.4645455,0.00010785,2]
[425899086,1782031790000,-500.0,0.00010785,2]
[425899085,1782031790000,-500.0,0.00010785,2]
[425899087,1782031790000,-500.0,0.00010785,2]
[425899088,1782031790000,-500.0,0.00010785,2]
[425899089,1782031790000,-500.0,0.00010785,2]
[425899090,1782031790000,-244.5180408,0.00010785,2]
[425899083,1782031790000,-173.5354545,0.00010785,2]
[425899096,1782031811000,-500.0,0.00010785,2]
[425899092,1782031811000,-500.0,0.00010785,2]
[425899091,1782031811000,-255.4819592,0.00010785,2]
[425899093,1782031811000,-500.0,0.00010785,2]
[425899094,1782031811000,-500.0,0.00010785,2]
[425899095,1782031811000,-500.0,0.00010785,2]
[425899101,1782031811000,-500.0,0.00010785,2]
[425899099,1782031811000,-500.0,0.00010785,2]
[425899098,1782031811000,-42.62969839,0.00010785,2]
[425899100,1782031811000,-500.0,0.00010785,2]
[425899102,1782031811000,-500.0,0.00010785,2]
[425899103,1782031811000,-500.0,0.00010785,2]